Cogmind - Beta 13 @@@ ROGUE MODE // 2024.04.01 @ 17:44:02 Player: lazy_engineer Result: Destroyed by G-34 Mercenary with Small Laser Performance ------------- Evolutions (1) 500 Regions Visited (2) 400 Robots Destroyed (12) 60 Value Destroyed (203) 203 Prototype IDs (2) 40 Alien Tech Used (0) 0 Bonus (0) 0 TOTAL SCORE: 1203 Bonus ------- None Cogmind --------- Core Integrity 0/400 Matter 290/300 Energy 100/100 System Corruption 0% Temperature Cool (6) Movement Core (50) Location -9/Materials Parts ------- > --- POWER (1) -------- (None) > --- PROPULSION (2) --- (None) > --- UTILITY (4) ------ (None) > --- WEAPON (2) ------- Datajack > --- INVENTORY (5) ---- Light Treads Light Treads Small Storage Unit Peak State ------------ > --- POWER ------------ Ion Engine > --- PROPULSION ------- Light Treads Light Treads > --- UTILITY ---------- Small Storage Unit Improved Terrain Scanner > --- WEAPON ----------- EM Pulse Gun Light Assault Rifle > --- INVENTORY -------- Seismic Detector [Rating: 9] Favorites ----------- Power Ion Engine Engine Ion Engine Propulsion Light Treads Treads Light Treads Flight Unit Flight Unit Utility Improved Terrain Scanner Device Improved Terrain Scanner Storage Small Storage Unit Weapon EM Pulse Gun Energy Gun EM Pulse Gun Ballistic Gun Light Assault Rifle Special Melee Weapon Datajack Build | -11 -10 -9 ------- Run | Yrd Mat Mat Slots Evolved 2 | . . 2 Power . | . . . Propulsion . | . . . Utility 2 | . . 2 Weapon . | . . . Parts Attached 15 | 6 6 3 Power 1 | 1 . . Engine 1 | 1 . . Core . | . . . Reactor . | . . . Propulsion 6 | 2 2 2 Treads 4 | 2 2 . Leg . | . . . Wheel . | . . . Hover . | . . . Flight 2 | . . 2 Utility 3 | 1 2 . Device 2 | . 2 . Storage 1 | 1 . . Processor . | . . . Hackware . | . . . Protection . | . . . Artifact . | . . . Weapon 5 | 2 2 1 Energy Gun 2 | 1 1 . Energy Cannon . | . . . Ballistic Gun 2 | 1 1 . Ballistic Cannon . | . . . Launcher . | . . . Special Weapon . | . . . Impact Weapon . | . . . Slashing Weapon . | . . . Piercing Weapon . | . . . Special Melee Weapon 1 | . . 1 Unidentified Prototypes . | . . . Parts Lost 7 | . . 7 Power 1 | . . 1 Propulsion 2 | . . 2 Utility 2 | . . 2 Weapon 2 | . . 2 Highest Loss Streak 4 | . . 4 To Critical Strikes . | . . . Average Slot Usage (%) 87 | . 98 66 Engine 12 | . 14 8 Treads 24 | . 27 18 Device 20 | . 20 19 Storage 4 | . 7 . Energy Gun 12 | . 13 8 Ballistic Gun 11 | . 13 8 Naked Turns 17 | . . 17 Heaviest Build 14 | 13 14 10 Greatest Support 40 | 40 40 40 Greatest Overweight (x) 2 | . 2 . Average Overweight (x) . | . . . Largest Inventory Capacity 8 | 8 8 5 Average Capacity 6 | 7 6 5 Most Carried 5 | 3 5 4 Average Carried 1 | . 1 3 Final Capacity 8 | 8 5 5 Final Carried 3 | 2 3 3 Class Distribution -------------------- 97% | Mutant Dominant Class ---------------- Mutant | -10/Materials Mutant | -9/Materials Resources | -11 -10 -9 ----------- Run | Yrd Mat Mat Matter Collected 363 | 265 79 19 Remotely . | . . . Salvage Created 427 | 144 209 74 Parts 32 | 11 14 7 Haulers Intercepted . | . . . Recyclers Shooed 1 | 1 . . Parts Field Recycled . | . . . Retrieved Matter . | . . . Parts Self-Destructed . | . . . Prevented . | . . . Kills | -11 -10 -9 ------- Run | Yrd Mat Mat Combat Hostiles Destroyed 6 | . 5 1 Guns 6 | . 5 1 Classes Destroyed 6 | 2 2 2 Tunneler 2 | 2 . . Recycler 2 | 1 1 . Operator 1 | . . 1 Watcher 1 | . . 1 Swarmer 3 | . 3 . Grunt 3 | . 2 1 Best Kill Streak 3 | 3 3 2 Combat Bots Only 3 | . 3 1 Max Kills in Single Turn 1 | 1 1 1 Gunslinging . | . . . Exploded . | . . . Melee . | . . . Uniques/NPCs Destroyed . | . . . Combat | -11 -10 -9 -------- Run | Yrd Mat Mat Hostile Shots Fired 141 | . 27 114 Missed 49 | . 6 43 Damage Taken 933 | . 218 715 Core 465 | . 61 404 Absorbed by Shields . | . . . Core Remaining (%) 87 | 100 75 . Volleys Fired 38 | 11 16 11 Largest 2 | 2 2 2 Hottest 60 | 60 60 60 Shots Fired 72 | 22 29 21 Gun 72 | 22 29 21 Cannon . | . . . Launcher . | . . . Special . | . . . Kinetic 34 | 11 13 10 Thermal . | . . . Explosive . | . . . Electromagnetic 38 | 11 16 11 Robot Hit Streak 5 | 4 4 5 Robot Miss Streak 3 | 2 3 2 Penetration Max . | . . . Secondary Targets 2 | . 2 . Max Gunslinging Chain 1 | . 1 . Shots Hit Robots 39 | 12 14 13 Core Hits 22 | 6 8 8 Critical Kills . | . . . Critical Parts Destroyed . | . . . Critical Strikes . | . . . Melee Attacks 1 | . . 1 Impact . | . . . Slashing . | . . . Piercing . | . . . Sneak Attacks . | . . . Combat Hostiles . | . . . Follow-up Attacks . | . . . Damage Inflicted 523 | 117 208 198 Guns 434 | 117 167 150 Cannons . | . . . Explosions 89 | . 41 48 Melee . | . . . Ramming . | . . . Kinetic 125 | 51 37 37 Thermal 89 | . 41 48 Explosive . | . . . Electromagnetic 309 | 66 130 113 Impact . | . . . Slashing . | . . . Piercing . | . . . Highest Corruption . | . . . Average Corruption . | . . . Corruption Purged . | . . . Corruption Blocked . | . . . Overload Shots . | . . . Overflow Damage . | . . . Projectiles . | . . . Explosions . | . . . Melee . | . . . Knockbacks . | . . . Impact . | . . . Kinetic . | . . . Secondary . | . . . Self-Inflicted Damage . | . . . Shots . | . . . Rammed . | . . . Targets Rammed . | . . . Kicked . | . . . Crushed . | . . . Highest Temperature 124 | 40 124 50 Average Temperature 36 | 15 57 20 Received Heat Transfer 330 | . 99 231 Siege Activations . | . . . Robots Corrupted . | . . . Combat Hostiles . | . . . Parts Fried . | . . . Impact Corruptions . | . . . Robots Melted . | . . . Combat Hostiles . | . . . Parts Melted . | . . . Heat Transferred 150 | . 50 100 Parts Sabotaged . | . . . Parts Stolen . | . . . Parts Stripped . | . . . Power Chain Reactions 2 | . 1 1 Alert | -11 -10 -9 ------- Run | Yrd Mat Mat Peak Influence 163 | 15 148 163 Initial 62 | . 9 62 Average 47 | 6 24 99 Maximum Alert Level . | . . . Low Security (%) 100 | 100 100 100 Level 1 . | . . . Level 2 . | . . . Level 3 . | . . . Level 4 . | . . . Level 5 . | . . . High Security . | . . . Max Security . | . . . Squads Dispatched 3 | . . 3 Investigation 2 | . . 2 Extermination . | . . . Reinforcement 1 | . . 1 Assault . | . . . Garrison . | . . . Intercept . | . . . Searches Triggered . | . . . Construction Impeded . | . . . Haulers Reinforced . | . . . Active Scanning Responses . | . . . Cargo Convoy Interrupts . | . . . Stealth | -11 -10 -9 --------- Run | Yrd Mat Mat Distress Signals 1 | . . 1 Communications Jammed . | . . . Distress Signals . | . . . Times Spotted 23 | . 6 17 Peak Tracking Total 10 | . 3 10 Tactical Retreats . | . . . Traps | -11 -10 -9 ------- Run | Yrd Mat Mat Traps Triggered 2 | . 2 . Indirectly . | . . . Trap Hack Attempts . | . . . Triggered . | . . . Disarmed . | . . . Reprogrammed . | . . . Reused . | . . . Traps Extracted . | . . . Installed . | . . . Triggered . | . . . Machines | -11 -10 -9 ---------- Run | Yrd Mat Mat Machines Disabled . | . . . Max in Single Turn . | . . . Machines Repaired . | . . . Machines Dismantled . | . . . Machines Sabotaged . | . . . Overloaded Fab Kills . | . . . Hacking | -11 -10 -9 --------- Run | Yrd Mat Mat Machines Accessed 4 | . 2 2 Terminals 4 | . 2 2 Fabricators . | . . . Repair Stations . | . . . Recycling Units . | . . . Scanalyzers . | . . . Garrison Access . | . . . Total Hacks 13 | . 5 8 Successful 5 | . 1 4 Failed 8 | . 4 4 Catastrophic . | . . . Database Lockouts . | . . . Manual . | . . . Terminals 13 | . 5 8 Fabricators . | . . . Repair Stations . | . . . Recycling Units . | . . . Scanalyzers . | . . . Garrison Access . | . . . Terminal Hacks 5 | . 1 4 Prototype ID Bank 1 | . 1 . Branch Access Points 1 | . . 1 Emergency Access Points 1 | . . 1 Alert Level 1 | . . 1 Hauler Manifests 1 | . . 1 Fabricator Hacks . | . . . Repair Station Hacks . | . . . Recycling Unit Hacks . | . . . Scanalyzer . | . . . Garrison Access Hacks . | . . . Unauthorized Hacks . | . . . Terminals . | . . . Fabricators . | . . . Repair Stations . | . . . Recycling Units . | . . . Scanalyzers . | . . . Garrison Access . | . . . Data Cores Recovered . | . . . Used . | . . . Hacking Detections 3 | . 1 2 Full Trace Events 2 | . . 2 Feedback Events . | . . . Feedback Blocked . | . . . Robot Schematics Acquired . | . . . Robots Built . | . . . Authchips . | . . . Time . | . . . Total Robot Build Rating . | . . . Part Schematics Acquired . | . . . Parts Built . | . . . Authchips . | . . . Time . | . . . Total Part Build Rating . | . . . Parts Repaired . | . . . Time . | . . . Parts Recycled . | . . . Recycled Matter . | . . . Retrieved Matter . | . . . Retrieved Components . | . . . Parts Scanalyzed . | . . . Part Schematics Acquired . | . . . Parts Damaged . | . . . Bothacking | -11 -10 -9 ------------ Run | Yrd Mat Mat Used RIF Installer . | . . . Robots Hacked . | . . . Non-combat . | . . . Combat . | . . . Robot Hacks Applied . | . . . Relay Couplers Released . | . . . Fabnet Peak Effective % . | . . . Robots Rewired . | . . . Allies Hacked . | . . . Hacks Repelled . | . . . Allies | -11 -10 -9 -------- Run | Yrd Mat Mat Total Allies . | . . . Largest Group . | . . . Highest-Rated Group . | . . . Highest-Rated Ally . | . . . Total Orders . | . . . Ally Attacks . | . . . Total Damage . | . . . Kills . | . . . Allies Corrupted . | . . . Allies Melted . | . . . Intel | -11 -10 -9 ------- Run | Yrd Mat Mat Robot Analysis Total . | . . . Derelict Logs Recovered . | . . . Drone Launches . | . . . Drone Recoveries . | . . . Exploration | -11 -10 -9 ------------- Run | Yrd Mat Mat Turns Passed 1319 | 121 773 425 Spaces Moved 392 | 55 195 142 Core 14 | 10 4 . Treads 344 | 45 191 108 Legs . | . . . Wheels . | . . . Hover . | . . . Flight 34 | . . 34 Fastest Speed 37 | 50 150 37 Average Speed 146 | 140 159 130 Slowest Speed 160 | 160 160 160 Overloaded Moves . | . . . Propulsion Burnouts . | . . . Robots Hopped . | . . . Cave-ins Triggered . | . . . Exploration Rate (%) 18 | 5 39 12 Regions Visited 2 Branch Regions . Pre-discovered Areas . | . . . Known Exits Taken . | . . . Unknown Exits Taken 2 | 1 1 . Scrap Searched . | . . . Spaces Dug . | . . . Terrain Destroyed 6 | . 3 3 Melee . | . . . Projectile . | . . . AOE 6 | . 3 3 Terrain Rammed . | . . . Walls Destroyed . | . . . Machines Disabled . | . . . Actions | -11 -10 -9 --------- Run | Yrd Mat Mat Total 1070 | 79 630 361 Wait 611 | . 408 203 Move 390 | 54 194 142 Hop . | . . . Pick Up 15 | 8 6 1 Fast Attach . | . . . Attach 12 | 6 5 1 Detach . | . . . Swap 3 | . 1 2 Drop . | . . . Fire 38 | 11 16 11 Melee 1 | . . 1 Ram . | . . . Kick . | . . . Crush . | . . . Escape Stasis . | . . . Rewire . | . . . Trap . | . . . Miscellaneous . | . . . Route ------- -11/Scrapyard -10/Materials -9/Materials (discovered 2 exits: [Mat] / Min) History --------- Turn | Location | Event 20 | -11/Scrapyard | Discovered new exit (range 16) 122 | -11/Scrapyard | Entered Materials 314 | -10/Materials | Build established: Mutant 790 | -10/Materials | Discovered new exit (range 10) 895 | -10/Materials | Entered another Materials area 895 | -9/Materials | Evolved 2 slots: Utility x2 914 | -9/Materials | Identified exit to Mines 1098 | -9/Materials | Discovered new exit (range 16) 1271 | -9/Materials | Lost 3 parts (1p2w) 1293 | -9/Materials | Core integrity fell below 50% 1309 | -9/Materials | Core integrity fell below 20% 1320 | -9/Materials | Destroyed by G-34 Mercenary with Small Laser Last Messages --------------- Acquired 3 matter. Acquired Datajack. K-01 Serf collects debris. W-16 Scout sends out distress signal. Chain reaction triggered in Lgt. Ion Engine. W-16 Scout destroyed. K-01 Serf collects debris. R-06 Scavenger collects Hover Unit. Ion Engine destroyed. Lgt. Assault Rifle destroyed. U-05 Engineer builds a Wall. G-34 Mercenary destroyed. EM Pulse Gun destroyed. U-05 Engineer lays Concrete. S-10 Pest destroyed. Acquired 13 matter. Seismic Detector destroyed. Flight Unit destroyed. Imp. Terrain Scanner destroyed. Jacked G-34 Mercenary... Map ----- +----------------------------------------------------+ | ????????????##???????????????????????????????????? | | ??????????????????#??????????????????????????????? | | ???????????????????????????????????#?????????????? | | ???????????????#?????????????????????????????????? | | ??? ???????????#??#????? ????????????????????????? | | ?? ??????????#????????? ?????????????????????????? | | ???????#????#????????"????#??????????#???????????? | | ???????# ??????????????????#?????????????????????? | | ?????### ??????????? ?????#??????????????????????? | | ?????# ########????????????????????????????????? | | ?????# ?????????????????????????????????? | | ?????# #????????????????????#????????????? | | ?????# #?#????????##? ???????????????????? | | ?????# #??????######?????????????????????? | | ?????# ######### #?????????????????????? | | ?????# #??????#??????????????? | | ?????# ##+######### #??"??????????????????? | | ?????# # #???## ##?????????#???????????? | | ?????# # #????# #??????????????????????? | | ??? # "" #????#r##?#???????????????????? | | ? # T" #???##g#??????????????????????? | | # # "" #??#?#Y#?????#????????????????? | | # # ###??#g##????#???#????????????? | | #* ! ########???##s#??????????????????????? | | "%! %* ??#???###???#s##?????????????????????? | | " % = ?#?#???#?#?#@#??????????????????????? | | " ????????????#g#??????????????????????? | | ??#"####### ????#?#?????#g##?????????????????????? | | ??????? ??? ??????????#g#??????????????????????? | | ??????????? ???#????????# #??????????#???????????? | | ??????????? ????????#?#?# #??????????????????????? | | ??????????????#????#????# #??????????????????????? | | ????????????????????????# #?????#????????????????? | | ???????????? ??????#????#w#??????????????????????? | | ??????????????????#????## #??????????????????????? | | ??????????? ?????#?#????# #??????????????????????? | | ????????????????????????# #????????#?????????????? | | ???????????????????????## #??????????????????????? | | ????????????????????????# #??????????????????? ? ? | | ??????????????????#?????# #???#??????????????????# | | ????????????????????????#+######?????????????????? | | ????????????????????????# #????"?#??????????? | | ?????????????????????#??# """ #??? ???????? ????? | | ?????????????????? ???# """ # ?? ?????????? ?? | | ????????????????? ??????# """ #?? ? ???####+###?? | | ????????????????? ?????# ###+#######| #?? | | ???????????????????"????# """ # #?? | | ??????????????? ????????# """ + T #?? | | ?????????????????"??????# """ # #?? | | ?????????????????#????### #??#?###### #?? | +----------------------------------------------------+ Best States ------------- Heat Dissipation 28 Energy Generation 10 Energy Capacity 250 Matter Stores 300 Matter Capacity 300 Sight Range 16 Terrain Scan Range 16 Terrain Scan Density 10 Evasion (%) 62 Recoil Reduction 2 Item Schematics ----------------- None Robot Schematics ------------------ None Fabricated ------------ Nothing Alien Tech Used ----------------- None Achievements -------------- None Challenges ------------ None Game ------ Seed ParticleAccelerationSheargun Manual? 0 Play Time 00:10:32 Cumulative 8.6 hours Start 2024.04.01 @ 17:34:07 End 2024.04.01 @ 17:44:02 Sessions 1 Manual Loads 0 Difficulty Rogue Special Mode None Game No. 16 Rogue 16 Adventurer 0 Explorer 0 Win Type - Total 0 Types 0/0/0/0/0/0/0/0/0 Lore% 12 Gallery% 13 Achievement% 16 Wizard Run 0 Options --------- Layout 1 ASCII 0 Keyboard 0 Movement Mouse Keybinds 0 Fullscreen 1 Font 32/SmallcapsGlow Map View 50x35 Zoom Use 0% Tactical HUD 0 Map Filters NONE Filters NONE Steam 1 RUN: 9d808bb9-7272-4123-a086-c880b5b72e26